Cogmind - Beta 10.1 @@@ ROGUE MODE // 2020.10.16 @ 16:04:19 Player: CrossedViper Result: Destroyed by Y-64 Sentinel with Wave Gun Performance ------------- Evolutions (6) 3000 Regions Visited (11) 2200 Robots Destroyed (144) 720 Value Destroyed (4213) 4213 Prototype IDs (31) 620 Alien Tech Used (0) 0 Bonus (1878) 1878 TOTAL SCORE: 12631 Bonus ------- High Alert Combat Kills 227 Follower Combat Kills 1661 Aligned with FarCom 300 Friendly Fire -310 Cogmind --------- Core Integrity 0/1150 Matter 195/300 Energy 98/100 System Corruption 17% Temperature Cool (9) Movement Core (50) Location -4/Factory Parts ------- > --- POWER (2) -------- (None) > --- PROPULSION (4) --- Advanced Medium Treads > --- UTILITY (10) ----- Advanced Melee Analysis Suite Advanced Hacking Suite > --- WEAPON (3) ------- (None) > --- INVENTORY (4) ---- Large Storage Unit Cloak of Protection Improved Component Analysis Suite Advanced EMP Blaster Peak State ------------ > --- POWER ------------ Cooled Deuterium Engine Neutrino Core > --- PROPULSION ------- Improved Titanium Leg Improved Titanium Leg Improved Titanium Leg Flexi-carbon Leg > --- UTILITY ---------- Large Storage Unit Large Storage Unit Army-in-a-Box > --- WEAPON ----------- Tesla Bomb Launcher Impact Mace Longsword +1 > --- INVENTORY -------- Armored Treads Advanced Treads Advanced Treads Improved Cooling System Experimental Sensor Array Improved Melee Analysis Suite Advanced Melee Analysis Suite Cloak of Protection Hardlight Generator Hacking Suite Cooled Pulse Rifle Gauss Rifle Advanced EMP Blaster Tesla Bomb Launcher Heavy Missile Launcher Impact Mace [Rating: 111] Favorites ----------- Power Cooled Deuterium Engine Engine Cooled Deuterium Engine Power Core Neutrino Core Reactor Light Antimatter Reactor Propulsion Improved Titanium Leg Treads Light Treads Leg Improved Titanium Leg Wheel Compact Wheel Flight Unit Nuclear Pulse Array Utility Large Storage Unit Device Army-in-a-Box Storage Large Storage Unit Processor Target Analyzer Hackware System Shield Protection Hardened Medium Armor Plating Weapon Mace Energy Gun Cooled Pulse Rifle Energy Cannon Heavy Plasma Cannon Ballistic Gun Gauss Rifle Launcher Improved Grenade Launcher Impact Weapon Mace Slashing Weapon Longsword +1 Build | -11 -10 -10 -10 -9 -8 -7 -7 -6 -5 -5 -4 ------- Run | Scr Mat Min Exi Min Mat Fac Sto Fac Fac Ext Fac Slots Evolved 12 | . . . . . 4 2 . 2 2 . 2 Power 1 | . . . . . . . . 1 . . . Propulsion 2 | . . . . . . . . 1 1 . . Utility 8 | . . . . . 4 2 . . . . 2 Weapon 1 | . . . . . . . . . 1 . . Parts Attached 153 | . 10 1 6 4 19 35 17 7 17 20 17 Power 19 | . 2 . 1 . 3 2 3 2 5 . 1 Engine 12 | . 2 . 1 . 3 2 2 1 1 . . Core 6 | . . . . . . . 1 1 4 . . Reactor 1 | . . . . . . . . . . . 1 Propulsion 32 | . 1 . 2 . 3 5 6 1 2 5 7 Treads 8 | . . . 2 . . . . . . 4 2 Leg 17 | . 1 . . . 3 3 6 1 2 1 . Wheel 3 | . . . . . . 2 . . . . 1 Hover . | . . . . . . . . . . . . Flight 4 | . . . . . . . . . . . 4 Utility 38 | . 1 1 1 . 5 9 1 . 6 9 5 Device 18 | . . 1 . . . 4 1 . 6 3 3 Storage 3 | . 1 . 1 . . . . . . 1 . Processor 6 | . . . . . 1 3 . . . 1 1 Hackware 6 | . . . . . 2 1 . . . 2 1 Protection 5 | . . . . . 2 1 . . . 2 . Artifact . | . . . . . . . . . . . . Weapon 64 | . 6 . 2 4 8 19 7 4 4 6 4 Energy Gun 11 | . . . . . . 6 2 2 . . 1 Energy Cannon 4 | . . . . . . . . . 1 2 1 Ballistic Gun 10 | . . . . . . 9 . . 1 . . Ballistic Cannon . | . . . . . . . . . . . . Launcher 18 | . 2 . . 2 4 2 2 1 1 3 1 Special Weapon . | . . . . . . . . . . . . Impact Weapon 16 | . 4 . 1 2 4 1 2 1 . 1 . Slashing Weapon 5 | . . . 1 . . 1 1 . 1 . 1 Piercing Weapon . | . . . . . . . . . . . . Special Melee Weapon . | . . . . . . . . . . . . Unidentified Prototypes 8 | . . . 1 . . 2 2 2 1 . . Parts Lost 38 | . 1 . . . . 4 7 1 3 2 20 Power 7 | . 1 . . . . . 1 1 1 . 3 Propulsion 12 | . . . . . . 1 2 . . 1 8 Utility 12 | . . . . . . 2 4 . . 1 5 Weapon 7 | . . . . . . 1 . . 2 . 4 Highest Loss Streak 15 | . 1 . . . . 3 4 1 1 2 15 Average Slot Usage (%) 81 | . 83 93 100 100 91 96 67 62 71 98 42 Engine 6 | . 12 14 14 14 9 7 5 6 4 . . Core 2 | . . . . . . . 1 1 5 11 3 Treads 2 | . . . 13 28 2 . . . . 3 7 Leg 15 | . 28 28 14 . 14 13 13 20 22 18 . Device 7 | . . 8 7 . . 6 6 6 8 22 4 Storage 14 | . 14 14 20 28 18 15 15 13 11 11 6 Processor 4 | . . . . . 5 14 4 . . 3 5 Hackware 6 | . . . . . 17 16 3 . . 5 2 Protection 1 | . . . . . 5 5 . . . 1 2 Energy Gun 1 | . . . . . . 2 4 . . . . Ballistic Gun 2 | . . . . . . 11 . . 2 . . Launcher 1 | . 1 . . . 3 . . 2 1 1 . Impact Weapon 7 | . 25 28 28 28 14 . 2 2 4 4 2 Slashing Weapon 2 | . . . . . . . 6 6 5 4 1 Naked Turns . | . . . . . . . . . . . . Heaviest Build 150 | 12 25 24 39 39 52 59 132 139 150 97 92 Greatest Support 102 | 20 20 20 40 40 40 35 40 60 80 94 102 Greatest Overweight (x) 4 | . 1 1 1 . 2 3 4 2 2 1 2 Average Overweight (x) 1 | . . 1 . . . 1 2 2 . . . Largest Inventory Capacity 16 | 6 12 10 16 16 16 16 16 16 16 16 16 Average Capacity 15 | 6 9 10 12 16 16 16 16 16 16 16 11 Most Carried 16 | 6 10 10 16 16 16 16 16 16 16 16 13 Average Carried 14 | 6 8 9 12 16 15 15 15 15 15 13 7 Final Capacity 16 | 6 10 10 16 16 16 16 16 16 16 16 4 Final Carried 16 | 6 10 9 16 16 16 16 16 16 16 10 4 Class Distribution -------------------- 59% | Mutant 32% | Hacker-Mutant 7% | Scavenger-Mutant Dominant Class ---------------- Mutant | -10/Materials Mutant | -10/Mines Mutant | -10/Exiles Mutant | -9/Mines Hacker-Mutant | -8/Materials Hacker-Mutant | -7/Factory Mutant | -7/Storage Mutant | -6/Factory Mutant | -5/Factory Hacker-Mutant | -5/Extension Mutant | -4/Factory Resources | -11 -10 -10 -10 -9 -8 -7 -7 -6 -5 -5 -4 ----------- Run | Scr Mat Min Exi Min Mat Fac Sto Fac Fac Ext Fac Matter Collected 2610 | 200 44 19 . 95 528 955 165 123 198 271 12 Remotely . | . . . . . . . . . . . . Salvage Created 5125 | . 148 . . 133 622 1268 495 580 590 1230 59 Parts 283 | . 15 . . 11 30 72 17 28 30 67 13 Haulers Intercepted 4 | . . . . . 2 1 . . . 1 . Recyclers Shooed 6 | . . . . 1 2 2 . . . 1 . Parts Field Recycled . | . . . . . . . . . . . . Retrieved Matter . | . . . . . . . . . . . . Parts Self-Destructed . | . . . . . . . . . . . . Prevented . | . . . . . . . . . . . . Kills | -11 -10 -10 -10 -9 -8 -7 -7 -6 -5 -5 -4 ------- Run | Scr Mat Min Exi Min Mat Fac Sto Fac Fac Ext Fac Combat Hostiles Destroyed 98 | . 11 . . 7 19 18 8 9 8 14 4 Melee 21 | . . . . . 2 1 4 7 4 3 . Guns 17 | . . . . . . 14 2 . 1 . . Cannons 1 | . . . . . . . . . . 1 . AOE 53 | . 11 . . 7 17 3 . 1 2 8 4 Classes Destroyed 17 | . 3 . . 1 5 5 . . 1 1 1 Worker 12 | . . . . 1 . 3 . 1 3 4 . Builder 8 | . . . . . . 1 . . . 5 2 Tunneler 1 | . . . . . . . . . . . 1 Hauler 4 | . . . . . 2 1 . . . 1 . Recycler 11 | . 1 . . 1 2 5 1 . . 1 . Mechanic 1 | . . . . . 1 . . . . . . Operator 5 | . . . . . 1 . 1 1 . 2 . Drone 1 | . . . . . . . . . 1 . . Watcher 3 | . . . . . . 1 . 1 1 . . Swarmer 43 | . 9 . . 7 11 7 . . . 5 4 Grunt 32 | . 2 . . . 6 4 5 5 6 4 . Brawler 1 | . . . . . 1 . . . . . . Duelist 3 | . . . . . 1 . . 1 1 . . Sentry 8 | . . . . . . 2 1 2 1 2 . Hunter 2 | . . . . . . 2 . . . . . Programmer 7 | . . . . . . 3 2 1 . 1 . Behemoth 2 | . . . . . . . . . . 2 . Best Kill Streak 16 | . 6 . . 4 10 8 4 2 7 16 7 Combat Bots Only 7 | . 6 . . 4 7 4 3 2 4 7 4 Max Kills in Single Turn 6 | . 3 . . 3 4 2 1 1 4 6 4 Gunslinging . | . . . . . . . . . . . . Exploded 4 | . 3 . . 3 2 1 . 1 2 4 2 Melee 1 | . . . . . 1 1 1 1 1 1 . Uniques/NPCs Destroyed . | . . . . . . . . . . . . Combat | -11 -10 -10 -10 -9 -8 -7 -7 -6 -5 -5 -4 -------- Run | Scr Mat Min Exi Min Mat Fac Sto Fac Fac Ext Fac Damage Taken 10184 | . 352 . . 8 428 1491 1561 888 759 937 3760 Core 2283 | . 109 . . . 112 223 416 55 86 123 1159 Absorbed by Shields 195 | . . . . . . 30 . . 46 119 . Core Remaining (%) 69 | 100 . . . 56 79 . 8 93 . 79 . Volleys Fired 155 | . 8 . . 4 16 74 14 3 10 22 4 Largest 2 | . 1 . . 1 1 2 2 1 1 1 1 Hottest 115 | . 30 . . 30 36 115 115 20 46 90 39 Shots Fired 228 | . 8 . . 4 16 139 22 3 10 22 4 Gun 162 | . . . . . . 133 21 3 3 . 2 Cannon 9 | . . . . . . . . . . 9 . Launcher 57 | . 8 . . 4 16 6 1 . 7 13 2 Special . | . . . . . . . . . . . . Kinetic 115 | . . . . . . 112 . . 3 . . Thermal 19 | . . . . . . . 5 3 . 9 2 Explosive 37 | . 8 . . 4 16 6 1 . . . 2 Electromagnetic 57 | . . . . . . 21 16 . 7 13 . Robot Hit Streak 30 | . 1 . . . 2 18 30 1 4 6 4 Robot Miss Streak 3 | . 1 . . . 3 2 1 1 1 2 . Penetration Max 1 | . . . . . . 1 . . . . . Secondary Targets 1 | . . . . . . 1 . . . . . Max Gunslinging Chain 1 | . . . . . . 1 . . . . . Shots Hit Robots 269 | . 9 . . 2 15 103 47 29 22 16 26 Core Hits 201 | . 12 . . 9 35 47 13 14 18 39 14 Critical Hits 14 | . . . . . . 7 5 1 1 . . Critical Kills 5 | . . . . . . 4 1 . . . . Critical Parts Destroyed 8 | . . . . . . 2 4 1 1 . . Melee Attacks 171 | . 14 . . 3 12 4 40 29 25 20 24 Impact 71 | . 14 . . 3 12 3 10 4 3 7 15 Slashing 100 | . . . . . . 1 30 25 22 13 9 Piercing . | . . . . . . . . . . . . Sneak Attacks 15 | . 2 . . 2 5 . 3 1 1 1 . Combat Hostiles . | . . . . . . . . . . . . Follow-up Attacks 7 | . . . . . 1 . . 1 2 1 2 Damage Inflicted 14285 | . 851 . . 501 2182 2174 1938 1295 1449 2509 1386 Guns 2327 | . . . . . . 1795 382 60 45 . 45 Cannons 304 | . . . . . . . . . . 304 . Explosions 5688 | . 610 . . 323 1719 335 33 . 597 1710 361 Melee 5944 | . 241 . . 178 463 36 1523 1235 807 495 966 Ramming 22 | . . . . . . 8 . . . . 14 Kinetic 1520 | . . . . . . 1475 . . 45 . . Thermal 834 | . . . . . . . 25 60 . 704 45 Explosive 3381 | . 610 . . 323 1719 335 33 . . . 361 Electromagnetic 2584 | . . . . . . 320 357 . 597 1310 . Impact 1781 | . 241 . . 178 463 . 97 137 95 25 545 Slashing 4163 | . . . . . . 36 1426 1098 712 470 421 Piercing . | . . . . . . . . . . . . Highest Corruption 17 | . . . . . . 5 8 . 2 3 17 Average Corruption 5 | . . . . . . 4 6 . 1 2 10 Corruption Purged . | . . . . . . . . . . . . Effects 82 | . . . . . . 37 29 . 2 8 6 Message Errors 13 | . . . . . . 5 3 . . 3 2 Matter Fused 19 | . . . . . . 11 8 . . . . Heat Flow Errors 14 | . . . . . . 5 5 . 1 1 2 Energy Discharges 8 | . . . . . . 2 5 . . . 1 Parts Rejected 2 | . . . . . . 2 . . . . . Data Loss (minor) 10 | . . . . . . 2 5 . 1 2 . Data Loss (major) 4 | . . . . . . 4 . . . . . Misdirections 1 | . . . . . . . . . . . 1 Targeting Errors 9 | . . . . . . 4 3 . . 2 . Weapon Failures 2 | . . . . . . 2 . . . . . Overload Shots 2 | . . . . . . . 2 . . . . Overflow Damage 1131 | . 68 . . 146 191 20 269 140 74 197 26 Projectiles 5 | . . . . . . . . . . 5 . Explosions 225 | . . . . 13 86 20 4 . 37 39 26 Melee 901 | . 68 . . 133 105 . 265 140 37 153 . Knockbacks 6 | . 3 . . 2 1 . . . . . . Impact 6 | . 3 . . 2 1 . . . . . . Kinetic . | . . . . . . . . . . . . Secondary . | . . . . . . . . . . . . Self-Inflicted Damage 284 | . 66 . . . 30 70 . . 99 13 6 Shots 10 | . 3 . . . 1 2 . . 3 1 . Rammed 7 | . . . . . . 1 . . . . 6 Targets Rammed 7 | . . . . . . 1 . . . . 6 Kicked . | . . . . . . . . . . . . Crushed . | . . . . . . . . . . . . Highest Temperature 339 | . 1 . . . 54 339 246 5 136 218 192 Average Temperature 58 | . 1 . . . 40 61 69 2 83 32 97 Received Heat Transfer 1915 | . 84 . . . 117 358 516 225 170 166 279 Siege Activations . | . . . . . . . . . . . . Robots Corrupted 6 | . . . . . . . 2 . 1 3 . Combat Hostiles 5 | . . . . . . . 2 . 1 2 . Parts Fried 17 | . . . . 2 3 . 2 1 2 7 . Impact Corruptions 13 | . 3 . . 4 4 . . 1 . . 1 Robots Melted . | . . . . . . . . . . . . Combat Hostiles . | . . . . . . . . . . . . Parts Melted 1 | . . . . . . . . . 1 . . Heat Transferred 1172 | . . . . . . . 37 111 . 950 74 Parts Sabotaged . | . . . . . . . . . . . . Parts Stolen . | . . . . . . . . . . . . Parts Stripped . | . . . . . . . . . . . . Power Chain Reactions 5 | . . . . . . . . . . 5 . Missiles Intercepted . | . . . . . . . . . . . . Alert | -11 -10 -10 -10 -9 -8 -7 -7 -6 -5 -5 -4 ------- Run | Scr Mat Min Exi Min Mat Fac Sto Fac Fac Ext Fac Peak Influence 769 | . 323 125 . 204 658 414 769 351 528 558 288 Initial 331 | . . 125 . . 79 293 156 331 73 258 273 Average 281 | . 96 125 . 115 433 225 466 218 233 370 247 Maximum Alert Level 3 | . 1 . . 1 2 2 3 1 2 2 1 Low Security (%) 32 | 100 79 100 . 65 10 32 9 50 45 . 11 Level 1 46 | . 20 . . 34 37 65 22 49 35 64 88 Level 2 19 | . . . . . 52 2 60 . 19 35 . Level 3 1 | . . . . . . . 8 . . . . Level 4 . | . . . . . . . . . . . . Level 5 . | . . . . . . . . . . . . High Security . | . . . . . . . . . . . . Max Security . | . . . . . . . . . . . . Squads Dispatched 26 | . 2 . . . 2 3 8 1 5 3 2 Investigation 7 | . 2 . . . . 1 1 . 2 1 . Extermination 6 | . . . . . . 2 1 1 2 . . Reinforcement 9 | . . . . . 1 . 3 . 1 2 2 Assault 3 | . . . . . 1 . 2 . . . . Garrison 1 | . . . . . . . 1 . . . . Intercept . | . . . . . . . . . . . . Construction Impeded 3 | . . . . . . . . . . 2 1 Haulers Reinforced 1 | . . . . . . . . . 1 . . Stealth | -11 -10 -10 -10 -9 -8 -7 -7 -6 -5 -5 -4 --------- Run | Scr Mat Min Exi Min Mat Fac Sto Fac Fac Ext Fac Distress Signals 9 | . . . . . 3 1 . 2 1 2 . Communications Jammed . | . . . . . . . . . . . . Distress Signals . | . . . . . . . . . . . . Times Spotted 214 | . 14 . . 6 30 34 42 17 25 24 22 Peak Tracking Total 9 | . 8 . . 4 6 4 8 5 9 7 9 Tactical Retreats 18 | . . . . . 2 5 2 2 3 . 4 Traps | -11 -10 -10 -10 -9 -8 -7 -7 -6 -5 -5 -4 ------- Run | Scr Mat Min Exi Min Mat Fac Sto Fac Fac Ext Fac Traps Triggered 12 | . . . . . 1 3 1 1 1 . 5 Indirectly . | . . . . . . . . . . . . Trap Hack Attempts . | . . . . . . . . . . . . Triggered . | . . . . . . . . . . . . Disarmed . | . . . . . . . . . . . . Reprogrammed . | . . . . . . . . . . . . Reused . | . . . . . . . . . . . . Traps Extracted . | . . . . . . . . . . . . Installed . | . . . . . . . . . . . . Triggered . | . . . . . . . . . . . . Machines | -11 -10 -10 -10 -9 -8 -7 -7 -6 -5 -5 -4 ---------- Run | Scr Mat Min Exi Min Mat Fac Sto Fac Fac Ext Fac Machines Disabled 30 | . 1 . . . 5 2 7 1 8 6 . Max in Single Turn 2 | . 1 . . . 2 1 1 1 1 2 . Machines Sabotaged . | . . . . . . . . . . . . Garrisons Compromised . | . . . . . . . . . . . . Overloaded Fab Kills . | . . . . . . . . . . . . Fab Network Shutdowns . | . . . . . . . . . . . . Hacking | -11 -10 -10 -10 -9 -8 -7 -7 -6 -5 -5 -4 --------- Run | Scr Mat Min Exi Min Mat Fac Sto Fac Fac Ext Fac Machines Accessed 20 | . 2 . 1 . . 4 4 2 3 4 . Terminals 16 | . 1 . . . . 3 3 2 3 4 . Fabricators . | . . . . . . . . . . . . Repair Stations . | . . . . . . . . . . . . Recycling Units 3 | . 1 . . . . 1 1 . . . . Scanalyzers . | . . . . . . . . . . . . Garrison Access . | . . . . . . . . . . . . Total Hacks 53 | . 4 . 1 . . 11 10 4 14 9 . Successful 23 | . 2 . 1 . . 3 5 3 4 5 . Failed 30 | . 2 . . . . 8 5 1 10 4 . Catastrophic 4 | . 1 . . . . 2 1 . . . . Database Lockouts . | . . . . . . . . . . . . Manual 25 | . 4 . 1 . . 3 8 2 5 2 . Terminals 49 | . 3 . . . . 10 9 4 14 9 . Fabricators . | . . . . . . . . . . . . Repair Stations . | . . . . . . . . . . . . Recycling Units 3 | . 1 . . . . 1 1 . . . . Scanalyzers . | . . . . . . . . . . . . Garrison Access . | . . . . . . . . . . . . Terminal Hacks 21 | . 1 . 1 . . 2 5 3 4 5 . Record 3 | . . . . . . . . . . 3 . Open Door 3 | . . . . . . . 1 . . 2 . Branch Access Points 4 | . 1 . . . . 1 . 1 1 . . Alert Level 5 | . . . . . . . 2 1 2 . . Unreport Threat 5 | . . . . . . 1 2 1 1 . . EX-Prototype ID Bank 1 | . . . 1 . . . . . . . . Fabricator Hacks . | . . . . . . . . . . . . Repair Station Hacks . | . . . . . . . . . . . . Recycling Unit Hacks . | . . . . . . . . . . . . Scanalyzer . | . . . . . . . . . . . . Garrison Access Hacks . | . . . . . . . . . . . . Unauthorized Hacks 2 | . 1 . . . . 1 . . . . . Terminals . | . . . . . . . . . . . . Fabricators . | . . . . . . . . . . . . Repair Stations . | . . . . . . . . . . . . Recycling Units 2 | . 1 . . . . 1 . . . . . Tunnel 2 | . 1 . . . . 1 . . . . . Scanalyzers . | . . . . . . . . . . . . Garrison Access . | . . . . . . . . . . . . Data Cores Recovered 1 | . . . . . . . . . . 1 . Used . | . . . . . . . . . . . . Hacking Detections 16 | . 1 . . . . 3 4 2 3 3 . Full Trace Events 3 | . 1 . . . . . 1 . 1 . . Feedback Events . | . . . . . . . . . . . . Feedback Blocked . | . . . . . . . . . . . . Robot Schematics Acquired . | . . . . . . . . . . . . Robots Built . | . . . . . . . . . . . . Matter . | . . . . . . . . . . . . Time . | . . . . . . . . . . . . Total Robot Build Rating . | . . . . . . . . . . . . Part Schematics Acquired . | . . . . . . . . . . . . Parts Built . | . . . . . . . . . . . . Matter . | . . . . . . . . . . . . Time . | . . . . . . . . . . . . Total Part Build Rating . | . . . . . . . . . . . . Parts Repaired . | . . . . . . . . . . . . Time . | . . . . . . . . . . . . Parts Recycled . | . . . . . . . . . . . . Recycled Matter . | . . . . . . . . . . . . Retrieved Matter . | . . . . . . . . . . . . Retrieved Components . | . . . . . . . . . . . . Parts Scanalyzed . | . . . . . . . . . . . . Part Schematics Acquired . | . . . . . . . . . . . . Parts Damaged . | . . . . . . . . . . . . Bothacking | -11 -10 -10 -10 -9 -8 -7 -7 -6 -5 -5 -4 ------------ Run | Scr Mat Min Exi Min Mat Fac Sto Fac Fac Ext Fac Used RIF Installer . | . . . . . . . . . . . . Robots Hacked . | . . . . . . . . . . . . Non-combat . | . . . . . . . . . . . . Combat . | . . . . . . . . . . . . Robot Hacks Applied . | . . . . . . . . . . . . Relay Couplers Released 3 | . . . . . . 3 . . . . . Programmers 3 | . . . . . . 3 . . . . . Robots Rewired 3 | . . . . . . . . . . 3 . Allies Hacked . | . . . . . . . . . . . . Hacks Repelled . | . . . . . . . . . . . . Allies | -11 -10 -10 -10 -9 -8 -7 -7 -6 -5 -5 -4 -------- Run | Scr Mat Min Exi Min Mat Fac Sto Fac Fac Ext Fac Total Allies 11 | . . . . 3 . . 2 . . 6 . Largest Group 5 | . . . . 3 3 . 2 . . 5 . Highest-Rated Group 264 | . . . . 73 73 . 62 . . 264 . Highest-Rated Ally 156 | . . . . 31 31 . 31 . . 156 . Total Orders 39 | . . . . . . . 29 1 9 . . FOLLOW 1 | . . . . . . . . . 1 . . EXPLORE 2 | . . . . . . . 1 . 1 . . RETURN 36 | . . . . . . . 28 1 7 . . Ally Attacks 461 | . . . . 4 48 . 205 6 139 59 . Total Damage 10261 | . . . . . 529 . 4741 88 3545 1358 . Kills 69 | . . . . . 8 . 35 1 21 4 . Allies Corrupted 1 | . . . . . . . 1 . . . . Allies Melted . | . . . . . . . . . . . . Intel | -11 -10 -10 -10 -9 -8 -7 -7 -6 -5 -5 -4 ------- Run | Scr Mat Min Exi Min Mat Fac Sto Fac Fac Ext Fac Robot Analysis Total . | . . . . . . . . . . . . Derelict Logs Recovered 1 | . . 1 . . . . . . . . . Drone Launches 99 | . . . . . . . 50 6 43 . . Drone Recoveries 69 | . . . . . . . 38 6 25 . . Exploration | -11 -10 -10 -10 -9 -8 -7 -7 -6 -5 -5 -4 ------------- Run | Scr Mat Min Exi Min Mat Fac Sto Fac Fac Ext Fac Turns Passed 6741 | 3 242 270 351 194 528 1593 1017 864 793 519 367 Spaces Moved 3617 | 3 120 179 216 108 255 816 405 392 433 278 412 Core 135 | . . . . . . . . . . . 135 Treads 326 | . . . 101 108 40 . . . . 25 52 Legs 2860 | 3 120 179 115 . 215 789 361 392 433 253 . Wheels 71 | . . . . . . 27 44 . . . . Hover . | . . . . . . . . . . . . Flight 225 | . . . . . . . . . . . 225 Fastest Speed 37 | 120 120 150 150 160 160 110 110 190 127 125 37 Average Speed 152 | 120 141 150 154 160 168 156 203 190 156 133 59 Slowest Speed 240 | 120 150 150 160 160 200 210 240 190 190 175 190 Overloaded Moves . | . . . . . . . . . . . . Propulsion Burnouts . | . . . . . . . . . . . . Robots Hopped 5 | . . . . . . . . . . . 5 Cave-ins Triggered 1 | . . . . . . . . . 1 . . Exploration Rate (%) 34 | 2 28 45 60 35 37 22 86 17 21 46 17 Regions Visited 11 Branch Regions 5 Pre-discovered Areas 4 | . 1 2 . . . 1 . . . . . Known Exits Taken 3 | . 1 . . . . 1 . . 1 . . Unknown Exits Taken 8 | 1 . 1 1 1 1 . 1 1 . 1 . Scrap Searched 1 | . . 1 . . . . . . . . . Spaces Dug 34 | . 16 . . . 11 . . 1 5 1 . Terrain Destroyed 236 | . 55 . . 21 97 32 6 1 5 12 7 Melee 7 | . . . . . . . . 1 5 1 . Projectile 2 | . . . . . . 2 . . . . . AOE 227 | . 55 . . 21 97 30 6 . . 11 7 Terrain Rammed . | . . . . . . . . . . . . Walls Destroyed . | . . . . . . . . . . . . Machines Disabled . | . . . . . . . . . . . . Actions | -11 -10 -10 -10 -9 -8 -7 -7 -6 -5 -5 -4 --------- Run | Scr Mat Min Exi Min Mat Fac Sto Fac Fac Ext Fac Total 4417 | 2 165 181 235 120 319 978 535 480 513 391 498 Wait 147 | . . . . 3 2 25 28 32 19 15 23 Move 3596 | 2 119 178 215 107 254 815 404 391 432 277 402 Hop 5 | . . . . . . . . . . . 5 Pick Up 74 | . 7 1 8 . 6 5 18 7 4 8 10 Fast Attach 52 | . 4 . . . 9 20 2 2 14 . 1 Attach 41 | . . 1 1 . . 2 7 2 2 12 14 Detach 4 | . . . . . . . 1 . . 1 2 Swap 61 | . 6 . 5 4 10 13 8 3 2 8 2 Drop 94 | . 8 1 6 . 11 19 14 7 7 14 7 Fire 155 | . 8 . . 4 16 74 14 3 10 22 4 Melee 157 | . 13 . . 2 11 4 39 28 23 15 22 Ram 6 | . . . . . . . . . . . 6 Kick 1 | . . . . . . 1 . . . . . Crush . | . . . . . . . . . . . . Escape Stasis 5 | . . . . . . . . 5 . . . Rewire 19 | . . . . . . . . . . 19 . Trap . | . . . . . . . . . . . . Miscellaneous . | . . . . . . . . . . . . Route ------- -11/Scrapyard -10/Materials -10/Mines -10/Exiles -9/Mines -8/Materials -7/Factory (discovered 4 exits: *Fac / *Sto / Low x2) -7/Storage -6/Factory (discovered 3 exits: *Fac / Low x2) -5/Factory (discovered 5 exits: *Fac / *Upp x2 / *Ext x2) -5/Extension -4/Factory History --------- Turn | Location | Event 1 | -11/Scrapyard | Discovered new exit (range 3) 4 | -11/Scrapyard | Entered Materials 39 | -10/Materials | Identified exit to Mines 246 | -10/Materials | Entered Mines 247 | -10/Mines | Learned location of Storage (-7) 261 | -10/Mines | Learned location of Zion (-6) 313 | -10/Mines | Build established: Mutant 339 | -10/Mines | Found a damaged Exp. Sensor Array with a note attached 346 | -10/Mines | Found Prototype Device 508 | -10/Mines | Deemed a non-threat by the Exiles lab entrance 508 | -10/Mines | Discovered new exit (range 5) 516 | -10/Mines | Entered Exiles 552 | -10/Exiles | Met 8R-AWN 578 | -10/Exiles | Met EX-HEX 621 | -10/Exiles | Met EX-BIN 639 | -10/Exiles | Aligned with FarCom system 641 | -10/Exiles | Given EX-Vault access code 675 | -10/Exiles | Opened EX-Vault 685 | -10/Exiles | Found Prototype Slashing Weapon 686 | -10/Exiles | Identified Longsword +1 705 | -10/Exiles | Found Cloak of Protection 709 | -10/Exiles | Found Army-in-a-Box 752 | -10/Exiles | Warned to stay clear of 0b10 Research branches 799 | -10/Exiles | Met EX-DEC 855 | -10/Exiles | Discovered new exit (range 10) 867 | -10/Exiles | Stole three prototypes: Longsword +1, Cloak of Protection, Army-in-a-Box 867 | -10/Exiles | Entered Mines 894 | -9/Mines | Received a Mining Laser from a helpful Derelict 1034 | -9/Mines | Discovered new exit (range 13) 1061 | -9/Mines | Entered Materials 1061 | -8/Materials | Accompanied by 3 allies 1061 | -8/Materials | Evolved 4 slots: Utility x4 1073 | -8/Materials | Led the pair of lost Derelicts to an unsafe place 1149 | -8/Materials | Destroyed 7 combat bots 1392 | -8/Materials | Build established: Hacker-Mutant 1461 | -8/Materials | First assault squad dispatched 1501 | -8/Materials | Discovered new exit (range 7) 1589 | -8/Materials | Entered Factory 1589 | -7/Factory | Evolved 2 slots: Utility x2 1591 | -7/Factory | FarCom data flow suspended 1794 | -7/Factory | Identified exit to Storage 1794 | -7/Factory | Identified exit to Lower Caves 2474 | -7/Factory | Discovered new exit (range 16) 2923 | -7/Factory | Lost 3 parts (1n1u1w) 3182 | -7/Factory | Entered Storage 3281 | -7/Storage | Build established: Scavenger-Mutant 3320 | -7/Storage | Core integrity fell below 50% 3388 | -7/Storage | Core integrity fell below 20% 3430 | -7/Storage | Lost 4 parts (1p3u) 3489 | -7/Storage | Met a pair of Derelict thieves 3705 | -7/Storage | Build established: Mutant 4148 | -7/Storage | Garrison activated, responded to threat 4164 | -7/Storage | Discovered new exit (range 17) 4199 | -7/Storage | Entered Factory 4199 | -6/Factory | Evolved 2 slots: Power x1, Propulsion x1 4567 | -6/Factory | Identified exit to Lower Caves 5036 | -6/Factory | Discovered new exit (range 16) 5063 | -6/Factory | Entered another Factory area 5063 | -5/Factory | Evolved 2 slots: Propulsion x1, Weapon x1 5188 | -5/Factory | Identified exit to Upper Caves 5188 | -5/Factory | Identified exit to Extension 5410 | -5/Factory | Found Prototype Launcher 5410 | -5/Factory | Identified Tesla Bomb Launcher 5418 | -5/Factory | Found Tesla Bomb Launcher 5420 | -5/Factory | Found Faulty Tesla Bomb Launcher 5485 | -5/Factory | Crushed by falling debris 5729 | -5/Factory | Discovered new exit (range 16) 5821 | -5/Factory | Identified Exp. Sensor Array 5856 | -5/Factory | Entered Extension 5924 | -5/Extension | Rescued a captive Derelict 5925 | -5/Extension | Rescued a captive Derelict 6008 | -5/Extension | Rescued A7 6216 | -5/Extension | Spotted B-75 Beast 6229 | -5/Extension | Spotted B-75 Beast 6239 | -5/Extension | Destroyed B-75 Beast 6257 | -5/Extension | Destroyed B-75 Beast 6260 | -5/Extension | Extracted ID and sensor layout for unrecognized location from A7's data core 6281 | -5/Extension | Disrupted transfer network 6295 | -5/Extension | Destroyed 7 combat bots 6371 | -5/Extension | Discovered new exit (range 4) 6375 | -5/Extension | Entered Factory 6375 | -4/Factory | Evolved 2 slots: Utility x2 6423 | -4/Factory | Spotted B-86 Titan 6582 | -4/Factory | Lost 15 parts (2p6n3u4w) 6598 | -4/Factory | Core integrity fell below 50% 6626 | -4/Factory | System corruption reached 10% 6679 | -4/Factory | Lost 3 parts (1p2n) 6686 | -4/Factory | Core integrity fell below 20% 6742 | -4/Factory | Destroyed by Y-64 Sentinel with Wave Gun Last Messages --------------- 06653_ Slammed into P-70 Sage. 06657_ Slammed into S-27 Virus. 06661_ Slammed into K-01 Serf. 06663_ O-16 Technician: "IFF HANDSHAKE FAILED. SECURING TERMINAL." 06664_ System corrupted: Energy discharge (-16). 06667_ Triggered Segregator Trap. 06667_ Arcs of energy rise from the floor. 06667_ Imp. Cooling System blown off. 06667_ Centrium Wheel blown off. 06668_ ALERT: Hostiles spotted, dispatching reinforcements to Terminal F004. 06668_ K-01 Serf cleans the Neutrino Reactor. 06672_ R-10 Processor collects Imp. Cooling System. 06709_ System corrupted: Heat flow error (+120). 06714_ Imp. Melee Analysis Suite destroyed. 06719_ Triggered Tesla Bomb Trap. 06719_ A bubble of electromagnetic force engulfs the area. 06726_ U-05 Engineer lays Concrete. 06731_ LGW: FX